Cogmind - Beta 12 @@@ ROGUE MODE // 2024.02.18 @ 02:06:26 Player: ToasterKoishi Result: Destroyed by D-53 Grenadier with Mini Grenade Launcher Performance ------------- Evolutions (0) 0 Regions Visited (2) 400 Robots Destroyed (14) 70 Value Destroyed (250) 250 Prototype IDs (0) 0 Alien Tech Used (0) 0 Bonus (0) 0 TOTAL SCORE: 720 Bonus ------- None Cogmind --------- Core Integrity 0/250 Matter 300/300 Energy 98/100 System Corruption 0% Temperature Cool (0) Movement Rolling (95) Ox1 Location -10/Mines Parts ------- > --- POWER (1) -------- (None) > --- PROPULSION (2) --- Wheel Wheel > --- UTILITY (2) ------ Large Storage Unit Core Shielding > --- WEAPON (2) ------- Beam Cannon Beam Cannon > --- INVENTORY (15) --- Ion Engine Compact Wheel Heat Sink Large Storage Unit Medium Matter Pod (100) Compact Matter Pod (150) Improved Terrain Scanner Seismic Detector Targeting Computer Core Shielding Core Shielding Core Shielding Power Shielding Weapon Shielding Grenade Launcher Peak State ------------ > --- POWER ------------ Ion Engine > --- PROPULSION ------- Aluminum Leg Aluminum Leg > --- UTILITY ---------- Small Storage Unit Improved Terrain Scanner > --- WEAPON ----------- Assault Rifle Light Assault Rifle > --- INVENTORY -------- Light Ion Engine Wheel [Rating: 9] Favorites ----------- Power Ion Engine Engine Ion Engine Propulsion Aluminum Leg Leg Aluminum Leg Wheel Wheel Utility Large Storage Unit Device Heat Sink Storage Large Storage Unit Protection Core Shielding Weapon Beam Cannon Energy Cannon Beam Cannon Ballistic Gun Assault Rifle Launcher Grenade Launcher Build | -11 -10 -10 ------- Run | Jun Mat Min Slots Evolved . | . . . Power . | . . . Propulsion . | . . . Utility . | . . . Weapon . | . . . Parts Attached 25 | 9 12 4 Power 4 | 2 2 . Engine 4 | 2 2 . Core . | . . . Reactor . | . . . Propulsion 5 | 2 2 1 Treads . | . . . Leg 2 | 2 . . Wheel 3 | . 2 1 Hover . | . . . Flight . | . . . Utility 8 | 3 4 1 Device 5 | 2 3 . Storage 2 | 1 1 . Processor . | . . . Hackware . | . . . Protection 1 | . . 1 Artifact . | . . . Weapon 8 | 2 4 2 Energy Gun . | . . . Energy Cannon 3 | . 2 1 Ballistic Gun 3 | 2 1 . Ballistic Cannon . | . . . Launcher 2 | . 1 1 Special Weapon . | . . . Impact Weapon . | . . . Slashing Weapon . | . . . Piercing Weapon . | . . . Special Melee Weapon . | . . . Unidentified Prototypes . | . . . Parts Lost 4 | . 2 2 Power 1 | . . 1 Propulsion 3 | . 2 1 Utility . | . . . Weapon . | . . . Highest Loss Streak 1 | . 1 1 To Critical Strikes . | . . . Average Slot Usage (%) 98 | . 99 94 Engine 12 | . 14 8 Leg 17 | . 23 . Wheel 9 | . 4 27 Device 12 | . 13 6 Storage 14 | . 14 14 Protection 1 | . . 7 Energy Cannon 23 | . 22 28 Ballistic Gun 4 | . 5 . Naked Turns . | . . . Heaviest Build 32 | 14 32 32 Greatest Support 20 | 20 20 20 Greatest Overweight (x) 3 | 2 3 3 Average Overweight (x) 1 | . 1 1 Largest Inventory Capacity 15 | 8 15 15 Average Capacity 14 | 7 14 15 Most Carried 15 | 3 14 15 Average Carried 10 | 1 9 14 Final Capacity 15 | 8 15 15 Final Carried 15 | 3 14 15 Class Distribution -------------------- 100% | Mutant Dominant Class ---------------- Mutant | -10/Materials Mutant | -10/Mines Resources | -11 -10 -10 ----------- Run | Jun Mat Min Matter Collected 756 | 312 194 250 Remotely . | . . . Salvage Created 406 | 130 255 21 Parts 30 | 9 21 . Haulers Intercepted . | . . . Recyclers Shooed . | . . . Parts Field Recycled . | . . . Retrieved Matter . | . . . Parts Self-Destructed . | . . . Prevented . | . . . Kills | -11 -10 -10 ------- Run | Jun Mat Min Combat Hostiles Destroyed 14 | . 9 5 Guns 3 | . 3 . Cannons 7 | . 5 2 AOE 4 | . 1 3 Classes Destroyed 7 | 2 4 1 Builder 1 | . 1 . Tunneler 2 | 2 . . Recycler 1 | 1 . . Watcher 1 | . 1 . Swarmer 5 | . 5 . Grunt 4 | . 4 . Assembled 5 | . . 5 Best Kill Streak 4 | 2 4 4 Combat Bots Only 4 | . 3 4 Max Kills in Single Turn 2 | 1 1 2 Gunslinging . | . . . Exploded 2 | . 1 2 Melee . | . . . Uniques/NPCs Destroyed . | . . . Combat | -11 -10 -10 -------- Run | Jun Mat Min Damage Taken 953 | . 602 351 Core 257 | . 107 150 Absorbed by Shields . | . . . Redirected to Shielding 18 | . . 18 Core Remaining (%) 100 | 100 . . Volleys Fired 55 | 8 36 11 Largest 2 | 2 2 2 Hottest 120 | 40 120 120 Shots Fired 107 | 16 71 20 Gun 48 | 16 32 . Cannon 56 | . 38 18 Launcher 3 | . 1 2 Special . | . . . Kinetic 48 | 16 32 . Thermal 56 | . 38 18 Explosive 3 | . 1 2 Electromagnetic . | . . . Robot Hit Streak 5 | 5 4 2 Robot Miss Streak 5 | 1 5 3 Penetration Max . | . . . Secondary Targets . | . . . Shots Hit Robots 47 | 11 30 6 Core Hits 27 | 5 16 6 Critical Kills . | . . . Critical Parts Destroyed . | . . . Critical Strikes . | . . . Melee Attacks . | . . . Impact . | . . . Slashing . | . . . Piercing . | . . . Sneak Attacks . | . . . Combat Hostiles . | . . . Follow-up Attacks . | . . . Damage Inflicted 836 | 122 478 236 Guns 282 | 122 160 . Cannons 388 | . 300 88 Explosions 163 | . 15 148 Melee . | . . . Ramming 3 | . 3 . Kinetic 282 | 122 160 . Thermal 388 | . 300 88 Explosive 163 | . 15 148 Electromagnetic . | . . . Impact . | . . . Slashing . | . . . Piercing . | . . . Highest Corruption . | . . . Average Corruption . | . . . Corruption Purged . | . . . Corruption Blocked . | . . . Overload Shots . | . . . Overflow Damage 6 | . . 6 Projectiles 6 | . . 6 Explosions . | . . . Melee . | . . . Knockbacks . | . . . Impact . | . . . Kinetic . | . . . Secondary . | . . . Self-Inflicted Damage . | . . . Shots . | . . . Rammed . | . . . Targets Rammed 1 | . 1 . Kicked 1 | . 1 . Crushed . | . . . Highest Temperature 360 | . 360 180 Average Temperature 113 | . 128 75 Received Heat Transfer 252 | . 192 60 Effects 1 | . 1 . Energy Bleed 1 | . 1 . Siege Activations . | . . . Robots Corrupted . | . . . Combat Hostiles . | . . . Parts Fried . | . . . Impact Corruptions . | . . . Robots Melted . | . . . Combat Hostiles . | . . . Parts Melted 1 | . 1 . Heat Transferred 814 | . 629 185 Parts Sabotaged . | . . . Parts Stolen . | . . . Parts Stripped . | . . . Power Chain Reactions . | . . . Missiles Intercepted . | . . . Alert | -11 -10 -10 ------- Run | Jun Mat Min Peak Influence 129 | 15 129 65 Initial 49 | . 9 49 Average 49 | 4 53 48 Maximum Alert Level . | . . . Low Security (%) 100 | 100 100 100 Level 1 . | . . . Level 2 . | . . . Level 3 . | . . . Level 4 . | . . . Level 5 . | . . . High Security . | . . . Max Security . | . . . Squads Dispatched 2 | . 2 . Investigation 1 | . 1 . Extermination . | . . . Reinforcement 1 | . 1 . Assault . | . . . Garrison . | . . . Intercept . | . . . Searches Triggered . | . . . Construction Impeded . | . . . Haulers Reinforced . | . . . Active Scanning Responses . | . . . Cargo Convoy Interrupts . | . . . Stealth | -11 -10 -10 --------- Run | Jun Mat Min Distress Signals 1 | . 1 . Communications Jammed . | . . . Distress Signals . | . . . Times Spotted 26 | . 18 8 Peak Tracking Total 4 | . 4 4 Tactical Retreats 2 | . . 2 Traps | -11 -10 -10 ------- Run | Jun Mat Min Traps Triggered 2 | . 2 . Indirectly . | . . . Trap Hack Attempts . | . . . Triggered . | . . . Disarmed . | . . . Reprogrammed . | . . . Reused . | . . . Traps Extracted . | . . . Installed . | . . . Triggered . | . . . Machines | -11 -10 -10 ---------- Run | Jun Mat Min Machines Disabled 1 | . 1 . Max in Single Turn 1 | . 1 . Machines Repaired . | . . . Machines Sabotaged . | . . . Overloaded Fab Kills . | . . . Hacking | -11 -10 -10 --------- Run | Jun Mat Min Machines Accessed 6 | . 6 . Terminals 6 | . 6 . Fabricators . | . . . Repair Stations . | . . . Recycling Units . | . . . Scanalyzers . | . . . Garrison Access . | . . . Total Hacks 13 | . 13 . Successful 2 | . 2 . Failed 10 | . 10 . Catastrophic 2 | . 2 . Database Lockouts 1 | . 1 . Manual 10 | . 10 . Terminals 13 | . 13 . Fabricators . | . . . Repair Stations . | . . . Recycling Units . | . . . Scanalyzers . | . . . Garrison Access . | . . . Terminal Hacks 2 | . 2 . Robot Schematic 1 | . 1 . Locate Traps 1 | . 1 . Fabricator Hacks . | . . . Repair Station Hacks . | . . . Recycling Unit Hacks . | . . . Scanalyzer . | . . . Garrison Access Hacks . | . . . Unauthorized Hacks . | . . . Terminals . | . . . Fabricators . | . . . Repair Stations . | . . . Recycling Units . | . . . Scanalyzers . | . . . Garrison Access . | . . . Data Cores Recovered . | . . . Used . | . . . Hacking Detections 6 | . 6 . Full Trace Events . | . . . Feedback Events . | . . . Feedback Blocked . | . . . Robot Schematics Acquired 1 | . 1 . Robots Built . | . . . Authchips . | . . . Time . | . . . Total Robot Build Rating . | . . . Part Schematics Acquired . | . . . Parts Built . | . . . Authchips . | . . . Time . | . . . Total Part Build Rating . | . . . Parts Repaired . | . . . Time . | . . . Parts Recycled . | . . . Recycled Matter . | . . . Retrieved Matter . | . . . Retrieved Components . | . . . Parts Scanalyzed . | . . . Part Schematics Acquired . | . . . Parts Damaged . | . . . Bothacking | -11 -10 -10 ------------ Run | Jun Mat Min Used RIF Installer . | . . . Robots Hacked . | . . . Non-combat . | . . . Combat . | . . . Robot Hacks Applied . | . . . Relay Couplers Released . | . . . Fabnet Peak Effective % . | . . . Robots Rewired . | . . . Allies Hacked . | . . . Hacks Repelled . | . . . Allies | -11 -10 -10 -------- Run | Jun Mat Min Total Allies 1 | . . 1 Largest Group 1 | . . 1 Highest-Rated Group 31 | . . 31 Highest-Rated Ally 31 | . . 31 Total Orders . | . . . Ally Attacks . | . . . Total Damage . | . . . Kills . | . . . Allies Corrupted . | . . . Allies Melted . | . . . Intel | -11 -10 -10 ------- Run | Jun Mat Min Robot Analysis Total . | . . . Derelict Logs Recovered 2 | . . 2 Drone Launches . | . . . Drone Recoveries . | . . . Exploration | -11 -10 -10 ------------- Run | Jun Mat Min Turns Passed 1632 | 86 1164 382 Spaces Moved 1010 | 43 605 362 Core 11 | 11 . . Treads . | . . . Legs 445 | 32 413 . Wheels 554 | . 192 362 Hover . | . . . Flight . | . . . Fastest Speed 50 | 50 95 95 Average Speed 134 | 113 158 95 Slowest Speed 330 | 150 330 125 Overloaded Moves . | . . . Propulsion Burnouts . | . . . Robots Hopped . | . . . Cave-ins Triggered . | . . . Exploration Rate (%) 50 | 4 89 57 Regions Visited 2 Branch Regions 1 Pre-discovered Areas . | . . . Known Exits Taken . | . . . Unknown Exits Taken 2 | 1 1 . Scrap Searched 2 | . . 2 Spaces Dug . | . . . Terrain Destroyed 16 | . . 16 Melee . | . . . Projectile . | . . . AOE 16 | . . 16 Terrain Rammed . | . . . Walls Destroyed . | . . . Machines Disabled . | . . . Actions | -11 -10 -10 --------- Run | Jun Mat Min Total 1177 | 61 737 379 Wait 67 | . 67 . Move 1008 | 42 604 362 Hop . | . . . Pick Up 14 | 1 11 2 Fast Attach 12 | 8 4 . Attach 2 | . 1 1 Detach 2 | 1 1 . Swap 11 | 1 7 3 Drop 5 | . 5 . Fire 55 | 8 36 11 Melee . | . . . Ram . | . . . Kick 1 | . 1 . Crush . | . . . Escape Stasis . | . . . Rewire . | . . . Trap . | . . . Miscellaneous . | . . . Route ------- -11/Junkyard -10/Materials (discovered 5 exits: [*Mat x3] / [*Min x2]) -10/Mines History --------- Turn | Location | Event 8 | -11/Junkyard | Discovered new exit (range 16) 87 | -11/Junkyard | Entered Materials 330 | -10/Materials | Build established: Mutant 330 | -10/Materials | Discovered new exit (range 15) 330 | -10/Materials | Discovered new exit (range 14) 638 | -10/Materials | Discovered new exit (range 8) 704 | -10/Materials | Discovered new exit (range 15) 1042 | -10/Materials | Central database locked down 1192 | -10/Materials | Discovered new exit (range 8) 1251 | -10/Materials | Entered Mines 1270 | -10/Mines | Learned Materials emergency access door positions 1297 | -10/Mines | Assembled infested the area 1418 | -10/Mines | Core integrity fell below 50% 1429 | -10/Mines | Core integrity fell below 20% 1457 | -10/Mines | Received a Mining Laser from a helpful Derelict 1541 | -10/Mines | Learned Materials emergency access door positions 1633 | -10/Mines | Destroyed by D-53 Grenadier with Mini Grenade Launcher Last Messages --------------- 01455_ A derelict emerges from the shadows: "What are you doing alone down here?" 01457_ 3B-UIU(g): "And why aren't you carrying a mining laser?! Certainly you don't want THEM to uncover you when the ceiling comes crashing down? Here, take my spare." 01460_ 3B-UIU(g): "You're apparently new around these parts, I'll cover you." 01467_ 3B-UIU(g): "Mining lasers are a lot more useful than you might think..." 01492_ Ion Engine destroyed. 01503_ Acquired 4 matter. 01528_ K-01 Serf collects debris. 01541_ Acquired derelict log, extracted data. Data stored: Materials emergency access points. 01543_ K-01 Serf collects debris. 01553_ Searching scrap... 01553_ Found Hover Unit. 01553_ Found Hcp. Matter Pod. 01553_ Found Com. Wheel. 01553_ Found Mining Laser. 01553_ Found 24 Matter. 01554_ Acquired 24 matter. 01555_ Acquired Com. Wheel. 01616_ Extracted 8 matter. Map ----- +----------------------------------------------------+ | ??????????????## ### #??## ##????###### | | ???????????????#####?# #???# ##?????????# | | ?????????????????????# #???# ##???????## | | ?????????????????????# #???## #??????## | | ?????????????????????# #????# ####?#?# | | ?????????????????????# #????# """" # | | ?????????????????????# #???## #### """" # | | ?????????????????????# #??## ##?# ##### """" | | ?????????????????????# #??# ### #???## | | ?????????????????? ??# #### ## #????## | | ?????????????????? ??# #####?## ## | | ?????????????????? ??# ##?# #### | | ????????? ???????? ??####### #?# #??# | | ????????? ?????? ????????## ## #?# #??# | | ????????? ??????"" ?????????##### ## #?# #??# | | ???????## ??????"" ?????????????## ## ### ##?# | | ??????? ??????"" ??????????????# ## ### | | ??????? ?????? ??????????????# ####### | | ???????# ??????# #?????????????## #?????# #### | | ???????# #?????# #?????????????# ##????# #??? | | ???????# #?????# #?????????????# ##???# #??? | | ???????# #?????# #????????????## """ #???# #??? | | ??????## #?????# #????????????# """ #???# #??? | | ????### ###???# #????????????# """ #???# #??? | | ???## " ##### ############## ##???# #??? | | ???# "%% d @ ## ##????# #??? | | ???# " ##### ######## ### #?????# #??? | | ???# ##???# #????## % ### ##????# #### | | ???####### #???## ###### ### #????# % | | ?????????# #???# """" ### ##?### #????#! | | ?????????# #???# """" #?# ##??#### ##????##### | | ?????????# #???# """" #?# #???# #????????# | | ?????????# #???# #?# #???# !! ! #????????# | | ?????????# #???# #?# #??## !!! #???????## | | ?????????# #???#########?# #?## !!! #?????### | | ?????????# #?????????????# ### !!!! #????## | | ?????????# #?????????????# ## #????# | | ?????????# #?????????????# ######?#### | | ?????????# ?????????????##### ##??????# | | ?????????###?????????????????####???????## | | ????????????????????????????????????????# | | ????????????????????????????????????????## | | ????????????????????????????????????????# ##### | | ??????????????????????????????# ??????## #???? | | ?????????????????????????????# # #???? | | ??????????????????????????? #???# | | ?????????????????????????????# #??## | | ?????????????????????????????## #?## | | ??????????????????????????????# % # ####?# | | ??????????????????????????????# !% ?????# | +----------------------------------------------------+ Best States ------------- Heat Dissipation 35 Energy Generation 10 Energy Capacity 250 Matter Stores 300 Matter Capacity 300 Sight Range 16 Terrain Scan Range 16 Terrain Scan Density 10 Core Shielding 20 Evasion (%) 55 Item Schematics ----------------- None Robot Schematics ------------------ G-34 Mercenary | -10/Materials | Hacked Fabricated ------------ Nothing Alien Tech Used ----------------- None Achievements -------------- None Challenges ------------ None Game ------ Seed EnergyTiamatSheargun Manual? 0 Play Time 00:14:30 Cumulative 25.2 hours Start 2024.02.18 @ 01:54:39 End 2024.02.18 @ 02:06:26 Sessions 1 Manual Loads 0 Difficulty Rogue Special Mode None Game No. 21 Rogue 21 Adventurer 0 Explorer 0 Win Type - Total 1 Types 1/0/0/0/0/0/0/0/0 Lore% 25 Gallery% 22 Achievement% 24 Wizard Run 0 Options --------- ASCII 0 Keyboard 0 Movement Mouse Keybinds 0 Fullscreen 2 Font 18/SmallcapsGlow Map View 112x50 Tactical HUD 1 Map Filters NONE Filters NONE Steam 1 RUN: 9d46adb6-8648-459a-a25f-b820ed3f1765